fUSD/lending_fUSD_20251129
["ID","MTS","AMOUNT","RATE_DAILY","PERIOD"]
[395116267,1764450641173,-6709.0,0.00019776,2]
[395116268,1764450641183,-390.0,0.00019776,2]
[395116269,1764450641193,-1906.39057389,0.00019808,2]
[395116270,1764450641202,-500.0,0.00019848,2]
[395116271,1764450641212,-150.0,0.00019848,2]
[395116272,1764450641221,-500.0,0.00019848,2]
[395116273,1764450641231,-823.0,0.00019932,2]
[395116274,1764450641240,-398.0,0.00019932,2]
[395116275,1764450641249,-154.9,0.00019957,2]
[395116276,1764450641259,-500.0,0.0001997,2]
[395116277,1764450641268,-1000.0,0.0001997,2]
[395116278,1764450641278,-500.0,0.00019985,2]
[395116279,1764450641287,-200.0,0.00019985,2]
[395116280,1764450641296,-500.0,0.00019985,2]
[395116281,1764450641306,-201.856121,0.0002,2]
[395116282,1764450641315,-500.0,0.00020032,2]
[395116283,1764450641325,-500.0,0.00020069,2]
[395116284,1764450641334,-363.75,0.00020116,2]
[395116285,1764450641343,-500.0,0.00020122,2]
[395116286,1764450641353,-500.0,0.00020122,2]
[395116287,1764450641363,-1253.0,0.00020161,2]
[395116288,1764450641372,-640.0,0.00020161,2]
[395116289,1764450641382,-1193.0,0.00020161,2]
[395116290,1764450641392,-909.0,0.00020161,2]
[395116291,1764450641401,-2718.0,0.00020161,2]
[395116292,1764450641410,-562.0,0.00020161,2]
[395116293,1764450641419,-1603.0,0.00020173,2]
[395116294,1764450641429,-1600.0,0.00020178,2]
[395116295,1764450641439,-500.0,0.0002019,2]
[395116296,1764450641448,-1000.0,0.00020194,2]
[395116297,1764450641457,-3292.0,0.00020236,2]
[395116298,1764450641467,-500.0,0.00020236,3]
[395116299,1764450641476,-2505.0,0.0002025,2]
[395116300,1764450641486,-658.77527407,0.00020252,2]
[395116301,1764450641495,-500.0,0.00020259,2]
[395116302,1764450641504,-500.0,0.00020259,2]
[395116303,1764450641513,-162.380719,0.00020274,2]
[395116304,1764450641523,-500.0,0.00020341,2]
[395116305,1764450641532,-2000.0,0.00020341,2]
[395116306,1764450641541,-500.0,0.00020396,2]
[395116307,1764450641551,-500.0,0.00020396,2]
[395116308,1764450641561,-500.0,0.00020418,2]
[395116309,1764450641571,-406.10672341,0.00020419,2]
[395116310,1764450641581,-500.0,0.00020419,2]
[395116311,1764450641591,-500.0,0.00020426,2]
[395116312,1764450641601,-500.0,0.00020431,2]
[395116313,1764450641611,-504.85721223,0.00020464,2]
[395116314,1764450641620,-10761.8971197,0.00020494,2]
[395116315,1764450641630,-500.0,0.00020507,2]
[395116316,1764450641640,-500.0,0.00020514,2]
[395116317,1764450641649,-500.0,0.00020533,2]
[395116318,1764450641658,-500.0,0.00020533,2]
[395116319,1764450641668,-500.0,0.0002067,2]
[395116320,1764450641677,-500.0,0.0002067,2]
[395116321,1764450641686,-500.0,0.00020719,2]
[395116322,1764450641696,-322.6107,0.0002074,2]
[395116323,1764450641705,-287.61899177,0.0002074,2]
[395116324,1764450641715,-500.0,0.00020742,2]
[395116325,1764450641725,-500.0,0.00020767,2]
[395116326,1764450641734,-500.0,0.00020781,2]
[395116327,1764450641743,-500.0,0.00020785,2]
[395116328,1764450641753,-363.75,0.00020795,2]
[395116329,1764450641761,-500.0,0.00020796,2]
[395116330,1764450641771,-500.0,0.00020807,2]
[395116331,1764450641780,-500.0,0.00020807,2]
[395116332,1764450641789,-4749.23891065,0.0002082,2]
[395116333,1764450641799,-168.3888056,0.00020822,2]
[395116334,1764450641808,-741.37827479,0.000209,2]
[395116335,1764450641817,-500.0,0.00020904,2]
[395116336,1764450641827,-3728.42888459,0.0002094,2]
[395116337,1764450641836,-177.0478063,0.0002094,12]
[395116338,1764450641846,-500.0,0.00020944,2]
[395116339,1764450641855,-500.0,0.00020944,2]
[395116340,1764450641865,-500.0,0.00020958,2]
[395116341,1764450641874,-500.0,0.00020965,2]
[395116342,1764450641883,-500.0,0.0002097,2]
[395116343,1764450641893,-1000.0,0.0002097,2]
[395116344,1764450641902,-500.0,0.00020973,2]
[395116345,1764450641911,-500.0,0.00021028,2]
[395116346,1764450641920,-500.0,0.00021039,2]
[395116347,1764450641929,-156.68871822,0.00021055,2]
[395116348,1764450641939,-500.0,0.00021061,2]
[395116349,1764450641948,-500.0,0.00021081,2]
[395116350,1764450641958,-154.9,0.00021131,2]
[395116351,1764450641967,-500.0,0.00021216,2]
[395116352,1764450641977,-500.0,0.00021218,2]
[395116353,1764450641986,-500.0,0.00021219,2]
[395116354,1764450641996,-314.6,0.00021263,2]
[395116355,1764450642006,-345.92,0.00021276,2]
[395116356,1764450642015,-220.21,0.00021295,2]
[395116357,1764450642025,-2401.3038278,0.00021295,2]
[395116358,1764450642034,-500.0,0.00021331,2]
[395116359,1764450642044,-500.0,0.00021355,2]
[395116360,1764450642053,-174.61919141,0.0002137,2]
[395116361,1764450642062,-500.0,0.00021417,2]
[395116362,1764450642071,-390.0,0.00021444,2]
[395116363,1764450642081,-500.0,0.0002145,2]
[395116364,1764450642090,-500.0,0.00021474,2]
[395116365,1764450642100,-388.81998674,0.00021492,2]
[395116366,1764450642110,-500.0,0.00021568,2]
[395116367,1764450642123,-500.0,0.00021568,2]
[395116368,1764450642133,-500.0,0.00021573,2]
[395116369,1764450642142,-500.0,0.00021583,2]
[395116370,1764450642152,-2000.0,0.000216,2]
[395116371,1764450642161,-500.0,0.0002164,2]
[395116372,1764450642173,-181.2,0.00021709,2]
[395116373,1764450642183,-500.0,0.00021733,2]
[395116374,1764450642193,-1941.0,0.00021741,2]
[395116375,1764450642203,-1152.0,0.00021809,2]
[395116376,1764450642212,-500.0,0.00021823,2]
[395116377,1764450642222,-1000.0,0.000219,2]
[395116378,1764450642233,-500.0,0.00021918,4]
[395116379,1764450642242,-500.0,0.00021918,4]
[395116380,1764450642251,-500.0,0.00021918,4]
[395116381,1764450642261,-500.0,0.00021918,4]
[395116382,1764450642270,-386.63886845,0.00021918,4]
[395116383,1764450642279,-500.0,0.00021918,4]
[395116384,1764450642289,-500.0,0.00021918,4]
[395116385,1764450642298,-500.0,0.00021918,4]
[395116386,1764450642307,-500.0,0.00021918,4]
[395116387,1764450642317,-500.0,0.00021918,4]
[395116388,1764450642326,-500.0,0.00021918,4]
[395116389,1764450642336,-500.0,0.00021918,4]
[395116390,1764450642345,-500.0,0.00021918,4]
[395116391,1764450642355,-500.0,0.00021918,4]
[395116392,1764450642365,-500.0,0.00021918,4]
[395116393,1764450642375,-500.0,0.00021918,4]
[395116394,1764450642384,-500.0,0.00021918,4]
[395116395,1764450642393,-500.0,0.00021918,4]
[395116396,1764450642402,-500.0,0.00021918,4]
[395116397,1764450642411,-500.0,0.00021918,4]
[395116398,1764450642420,-500.0,0.00021918,4]
[395116399,1764450642429,-181.08010149,0.00021918,2]
[395116400,1764450642439,-150.74,0.0002199,2]
[395116401,1764450642448,-158.0,0.00022,2]
[395116402,1764450642457,-60231.26613485,0.00022,2]
[395116403,1764450642467,-1600.0,0.00022012,2]
[395116404,1764450642476,-500.0,0.00022045,2]
[395116405,1764450642485,-500.0,0.00022098,2]
[395116406,1764450642498,-472.45008152,0.00022109,2]
[395116407,1764450642507,-298.26089446,0.00022109,2]
[395116408,1764450642516,-500.0,0.00022119,2]
[395116409,1764450642526,-500.0,0.00022144,2]
[395116410,1764450642535,-177.0478063,0.00022155,14]
[395116411,1764450642544,-500.0,0.00022248,2]
[395116412,1764450642553,-4609.0,0.00022254,2]
[395116413,1764450642563,-154.9,0.00022305,2]
[395116414,1764450642572,-500.0,0.00022315,2]
[395116415,1764450642581,-500.0,0.00022329,2]
[395116416,1764450642590,-500.0,0.00022342,2]
[395116417,1764450642599,-500.0,0.00022352,2]
[395116418,1764450642609,-187.78006525,0.00022466,2]
[395116419,1764450642618,-500.0,0.00022479,2]
[395116420,1764450642627,-354.0,0.000225,2]
[395116421,1764450642636,-2262.025,0.00022562,2]
[395116422,1764450642645,-177.344,0.00022562,2]
[395116423,1764450642655,-500.0,0.00022576,2]
[395116424,1764450642664,-500.0,0.00022591,2]
[395116425,1764450642673,-500.0,0.00022605,2]
[395116426,1764450642683,-500.0,0.00022649,2]
[395116427,1764450642692,-500.0,0.00022756,2]
[395116428,1764450642702,-500.0,0.00022933,2]
[395116429,1764450642711,-500.0,0.00022996,2]
[395116430,1764450642722,-194.72792766,0.00023014,2]
[395116431,1764450642731,-500.0,0.00023059,2]
[395116432,1764450642741,-500.0,0.00023091,2]
[395116433,1764450642751,-390.0,0.00023113,2]
[395116434,1764450642760,-293.752,0.00023161,2]
[395116435,1764450642770,-1193.0,0.00023161,2]
[395116436,1764450642779,-909.0,0.00023161,2]
[395116437,1764450642789,-2718.0,0.00023161,2]
[395116438,1764450642798,-527.451,0.00023161,2]
[395116439,1764450642808,-965.028,0.00023173,2]
[395116440,1764450642817,-500.0,0.00023187,2]
[395116441,1764450642826,-773.82176128,0.00023219,2]
[395116442,1764450642836,-501.2063375,0.00023222,2]
[395116443,1764450642846,-551.92,0.00023311,2]
[395116444,1764450642855,-4130.57,0.00023368,2]
[395116449,1764450643199,-177.0478063,0.00023369,17]
[395116450,1764450643209,-500.0,0.00023417,2]
[395116451,1764450643218,-309.29654756,0.00023478,2]
[395116452,1764450643228,-154.9,0.00023479,2]
[395116453,1764450643238,-215.00841863,0.00023562,2]
[395116454,1764450643247,-560.26979881,0.00023596,2]
[395116455,1764450643257,-500.0,0.00023665,2]
[395116456,1764450643266,-4749.23891065,0.00023672,2]
[395116457,1764450643275,-658.77527407,0.00023694,2]
[395116458,1764450643285,-3728.42888459,0.00023791,2]
[395116459,1764450643294,-500.0,0.00023812,2]
[395116460,1764450643303,-505.31770609,0.00023814,2]
[395116461,1764450643313,-640.48227855,0.00023839,2]
[395116462,1764450643322,-1613.0,0.00023864,2]
[395116463,1764450643332,-768.27827943,0.00023878,2]
[395116464,1764450643341,-241.59,0.00024016,2]
[395116465,1764450643351,-156.68871822,0.00024063,2]
[395116466,1764450643360,-4773.0,0.00024474,2]
[395116467,1764450643370,-177.0478063,0.00024584,19]
[395116468,1764450643379,-154.9,0.00024653,2]
[395116469,1764450643389,-1000.0,0.00024658,2]
[395116470,1764450643399,-390.0,0.00024782,2]
[395116471,1764450643408,-131641.86370634,0.000248,3]
[395116472,1764450643437,-1166.47511346,0.000248,3]
[395116474,1764450643527,-1876.4,0.00017161,2]
[395116475,1764450643539,-300.0,0.00017161,2]
[395116476,1764450643559,-4328.6,0.00017161,2]
[395116477,1764450643568,-6505.0,0.00020161,2]
[395116478,1764450643577,-6505.0,0.00023161,2]
[395116479,1764450643587,-10812.71350612,0.000248,3]
[395116480,1764450643599,-45830.0,0.000248,3]
[395116481,1764450643610,-1226.75320904,0.000248,3]
[395116482,1764450643622,-330.8650065,0.000248,3]
[395116483,1764450643633,-648.24240001,0.000248,3]
[395116484,1764450643644,-36480.444,0.000248,3]
[395116485,1764450643826,-1103.84,0.000155,2]
[395116486,1764450643835,-1213.49,0.000155,2]
[395116487,1764450643845,-250.0,0.00017,2]
[395116488,1764450643854,-300.0,0.00019,2]
[395116489,1764450643864,-4046.9850555,0.000248,3]
[395116490,1764450643875,-2081.8364,0.000248,3]
[395116491,1764450643886,-1417.05,0.000248,3]
[395116492,1764450643900,-4386.95,0.000248,3]
[395116493,1764450643910,-536.75577851,0.000248,3]
[395116494,1764450643925,-2020.2,0.000248,3]
[395116495,1764450643936,-1510.13526797,0.000248,3]
[395116496,1764450643948,-3755.54023686,0.000248,3]
[395116497,1764450643959,-1335.22,0.000248,3]
[395116502,1764450646048,-350.0,0.00021,2]
[395116503,1764450646058,-400.0,0.00023,2]
[395116504,1764450646068,-135.63108795,0.000248,3]
[395116505,1764450646318,-378.49372602,0.000248,3]
[395116507,1764450959049,150.0,0.0001761,120]
[395116559,1764451553737,331.86558707,0.000146,2]
[395116571,1764451683294,774.81,0.00013699,2]
[395116657,1764451832283,-1906.974932,0.00015039,2]
[395116659,1764451832292,-87.60190716,0.00015115,2]
[395116661,1764451832302,-212.39809284,0.00015115,2]
[395116662,1764451832311,-1200.0,0.00015115,2]
[395116664,1764451832320,-268.26926329,0.00015115,2]
[395116667,1764451832338,-31.73073671,0.00015115,2]
[395116669,1764451832347,-434.60625379,0.00015116,2]
[395116671,1764451832358,-565.39374621,0.00015116,2]
[395116673,1764451832367,-3.79264059,0.00015116,2]
[395116675,1764451832377,-1016.37328688,0.00015116,2]
[395116677,1764451832388,-4955.5914,0.00015116,2]
[395116678,1764451832408,-2351.37,0.00015116,2]
[395116679,1764451832421,-3200.91677253,0.00015116,2]
[395116680,1764451832432,-347.1,0.00015215,2]
[395116681,1764451832441,-1000.0,0.00015216,2]
[395116682,1764451832451,-347.1,0.00015489,2]
[395116683,1764451832460,-150.0,0.00015591,2]
[395116684,1764451832470,-1386.60599993,0.00015647,2]
[395116685,1764451832482,-613.39400007,0.00015647,2]
[395116686,1764451832492,-300.0,0.00015664,2]
[395116687,1764451832501,-165.69518681,0.00015665,2]
[395116688,1764451832511,-500.0,0.00015665,2]
[395116689,1764451832520,-500.0,0.00015665,2]
[395116690,1764451832529,-72.62461492,0.00015665,2]
[395116693,1764451832541,-427.37538508,0.00015665,2]
[395116695,1764451832551,-274.23847628,0.00015665,2]
[395116697,1764451832562,-225.76152372,0.00015665,2]
[395116699,1764451832571,-500.0,0.00015665,2]
[395116701,1764451832580,-470.96149692,0.00015665,2]
[395116703,1764451832589,-277.40057419,0.00015665,2]
[395116705,1764451832599,-222.59942581,0.00015665,2]
[395116707,1764451832608,-349.97621219,0.00015665,2]
[395116709,1764451832619,-150.02378781,0.00015665,2]
[395116712,1764451832628,-500.0,0.00015665,2]
[395116715,1764451832637,-500.0,0.00015665,2]
[395116718,1764451832646,-500.0,0.00015665,2]
[395116720,1764451832655,-500.0,0.00015665,2]
[395116722,1764451832664,-398.71486368,0.00015665,2]
[395116724,1764451832679,-101.28513632,0.00015665,2]
[395116726,1764451832688,-500.0,0.00015665,2]
[395116728,1764451832697,-500.0,0.00015665,2]
[395116730,1764451832706,-500.0,0.00015665,2]
[395116732,1764451832717,-500.0,0.00015665,2]
[395116734,1764451832726,-500.0,0.00015665,2]
[395116736,1764451832735,-148.71486368,0.00015665,2]
[395116737,1764451838511,-351.28513632,0.00015665,2]
[395116738,1764451838522,-500.0,0.00015665,2]
[395116739,1764451838531,-500.0,0.00015665,2]
[395116740,1764451838541,-500.0,0.00015665,2]
[395116741,1764451838551,-500.0,0.00015665,2]
[395116742,1764451838560,-500.0,0.00015665,2]
[395116743,1764451838571,-500.0,0.00015665,2]
[395116744,1764451838581,-353.67486368,0.00015665,2]
[395116745,1764451838594,-146.32513632,0.00015665,2]
[395116746,1764451838603,-500.0,0.00015665,2]
[395116747,1764451838614,-500.0,0.00015665,2]
[395116748,1764451838624,-500.0,0.00015665,2]
[395116749,1764451838634,-500.0,0.00015665,2]
[395116750,1764451838643,-222.23665858,0.00015665,2]
[395116751,1764451838653,-500.0,0.00015665,2]
[395116752,1764451838662,-500.0,0.00015665,2]
[395116753,1764451838673,-500.0,0.00015665,2]
[395116754,1764451838685,-500.0,0.00015665,2]
[395116755,1764451838695,-500.0,0.00015665,2]
[395116756,1764451838704,-500.0,0.00015665,2]
[395116757,1764451838715,-500.0,0.00015665,2]
[395116758,1764451838725,-500.0,0.00015665,2]
[395116759,1764451838734,-500.0,0.00015665,2]
[395116760,1764451838744,-4912.86774199,0.00015666,2]
[395116761,1764451838758,-2139.40000018,0.00015666,2]
[395116762,1764451838769,-45878.99225783,0.00015666,2]
[395116763,1764451838778,-2751.0,0.0001569,2]
[395116764,1764451838787,-347.1,0.00015763,2]
[395116765,1764451838797,-776.94054744,0.000159,2]
[395116766,1764451838806,-776.94054742,0.000159,2]
[395116767,1764451838815,-776.94054742,0.000159,2]
[395116768,1764451838825,-776.94054742,0.000159,2]
[395116769,1764451838834,-776.94054742,0.000159,2]
[395116771,1764451838843,-776.94054742,0.000159,2]
[395116772,1764451838852,-4285.43115541,0.00015932,2]
[395116773,1764451838862,-500.0,0.00015973,2]
[395116774,1764451838871,-500.0,0.00015973,2]
[395116775,1764451838881,-500.0,0.00015973,2]
[395116776,1764451838890,-500.0,0.00015973,2]
[395116778,1764451838900,-500.0,0.00015973,2]
[395116780,1764451838911,-500.0,0.00015973,2]
[395116781,1764451838920,-500.0,0.00015973,2]
[395116782,1764451838930,-500.0,0.00015973,2]
[395116783,1764451838939,-500.0,0.00015973,2]
[395116784,1764451838948,-500.0,0.00015973,2]
[395116785,1764451838957,-500.0,0.00015999,2]
[395116786,1764451838967,-165.26682727,0.00015999,2]
[395116787,1764451838976,-320.0660718,0.00015999,2]
[395116788,1764451838985,-500.0,0.00015999,2]
[395116789,1764451838994,-346.81844742,0.00015999,2]
[395116790,1764451839004,-79856.39425607,0.00016,2]
[395116791,1764451839014,-205543.50970635,0.00016,4]
[395116792,1764451839023,-11476.6,0.00016032,2]
[395116793,1764451839032,-347.1,0.00016037,2]
[395116794,1764451839042,-4285.43115538,0.0001604,2]
[395116795,1764451839052,-4285.43115538,0.00016147,2]
[395116796,1764451839062,-5000.00665,0.000162,5]
[395116797,1764451839071,-4285.43115538,0.00016255,2]
[395116798,1764451839081,-347.11,0.00016311,2]
[395116799,1764451839090,-200.0,0.0001634,2]
[395116800,1764451839100,-4285.43115538,0.00016362,2]
[395116801,1764451839109,-924.5,0.00016435,2]
[395116802,1764451839119,-400.8,0.00016438,2]
[395116803,1764451839128,-500.0,0.00016438,2]
[395116804,1764451839138,-173.30593444,0.00016438,2]
[395116805,1764451839147,-416.08725444,0.00016438,2]
[395116806,1764451839157,-452.21585205,0.00016438,2]
[395116807,1764451839166,-239.57,0.0001644,2]
[395116808,1764451839175,-250.0,0.00016463,2]
[395116809,1764451839186,-4285.43115538,0.0001647,2]
[395116810,1764451839195,-427.45964135,0.00016511,2]
[395116811,1764451839205,-1000.0,0.00016521,2]
[395116812,1764451839214,-1000.0,0.00016521,2]
[395116813,1764451839223,-1000.0,0.00016521,2]
[395116814,1764451839232,-1000.0,0.00016521,2]
[395116815,1764451839242,-509.84757523,0.00016521,2]
[395116816,1764451839252,-1000.0,0.00016521,2]
[395116817,1764451839261,-1000.0,0.00016521,2]
[395116818,1764451839270,-420.0,0.00016541,2]
[395116819,1764451839280,-420.0,0.00016541,2]
[395116820,1764451839291,-1000.0,0.00016543,2]
[395116821,1764451839300,-300.0,0.00016543,2]
[395116822,1764451839310,-300.0,0.00016543,2]
[395116823,1764451839321,-300.0,0.00016543,2]
[395116824,1764451839330,-300.0,0.00016543,2]
[395116825,1764451839341,-300.0,0.00016543,2]
[395116826,1764451839352,-4285.43115538,0.00016577,2]
[395116827,1764451839362,-1680.0,0.00016625,2]
[395116828,1764451839372,-4285.43115538,0.00016685,2]
[395116829,1764451839381,-168.0,0.00016767,2]
[395116830,1764451839391,-510.0,0.00016792,2]
[395116831,1764451839401,-4285.43115538,0.00016792,2]
[395116832,1764451839412,-168.0,0.00016813,2]
[395116833,1764451839421,-168.0,0.00016819,2]
[395116834,1764451839430,-65224.76485794,0.000169,2]
[395116835,1764451839440,-563.9471036,0.000169,2]
[395116836,1764451839450,-4285.43115538,0.000169,2]
[395116837,1764451839461,-287.06863924,0.000169,2]
[395116838,1764451839470,-197.02240292,0.000169,2]
[395116839,1764451839479,-630.51395534,0.000169,2]
[395116840,1764451839490,-399.70042951,0.000169,2]
[395116841,1764451839500,-600.0,0.000169,2]
[395116842,1764451839510,-500.0,0.00016907,2]
[395116843,1764451839520,-500.0,0.00016907,2]
[395116844,1764451839530,-150.0,0.00016907,2]
[395116845,1764451839540,-150.0,0.00016907,2]
[395116846,1764451839550,-150.0,0.00016907,2]
[395116847,1764451839560,-150.0,0.00016907,2]
[395116848,1764451839570,-500.0,0.00016907,2]
[395116849,1764451839579,-153.74,0.00016945,2]
[395116850,1764451839589,-168.0,0.00016949,2]
[395116851,1764451839598,-1040.24545121,0.00016972,5]
[395116852,1764451839608,-500.0,0.00016973,2]
[395116853,1764451839617,-165.98212225,0.00016973,2]
[395116854,1764451839627,-500.0,0.00016973,2]
[395116855,1764451839637,-500.0,0.00016973,2]
[395116856,1764451839647,-338.57088426,0.00016973,2]
[395116857,1764451839656,-500.0,0.00016973,2]
[395116858,1764451839666,-500.0,0.00016973,2]
[395116859,1764451839676,-500.0,0.00016973,2]
[395116860,1764451839685,-500.0,0.00016973,2]
[395116861,1764451839695,-500.0,0.00016973,2]
[395116862,1764451839704,-500.0,0.00016973,2]
[395116863,1764451839714,-500.0,0.00016973,2]
[395116864,1764451839723,-500.0,0.00016973,2]
[395116865,1764451839733,-500.0,0.00016973,2]
[395116866,1764451839742,-500.0,0.00016973,2]
[395116867,1764451839751,-500.0,0.00016973,2]
[395116868,1764451839761,-231.63969334,0.00016973,2]
[395116869,1764451839770,-500.0,0.00016973,2]
[395116870,1764451839780,-500.0,0.00016973,2]
[395116871,1764451839789,-500.0,0.00016973,2]
[395116872,1764451839799,-500.0,0.00016973,2]
[395116873,1764451839808,-500.0,0.00016973,2]
[395116874,1764451839818,-215.63945955,0.00016973,2]
[395116875,1764451839828,-500.0,0.00016973,2]
[395116876,1764451839837,-500.0,0.00016973,2]
[395116877,1764451839847,-500.0,0.00016973,2]
[395116878,1764451839857,-500.0,0.00016973,2]
[395116879,1764451839866,-500.0,0.00016973,2]
[395116880,1764451839876,-500.0,0.00016973,2]
[395116881,1764451839885,-500.0,0.00016973,2]
[395116882,1764451839894,-500.0,0.00016973,2]
[395116883,1764451839903,-500.0,0.00016973,2]
[395116884,1764451839912,-172.25490603,0.00016973,2]
[395116885,1764451839922,-500.0,0.00016973,2]
[395116886,1764451839932,-500.0,0.00016973,2]
[395116887,1764451839941,-343.55677068,0.00016973,2]
[395116888,1764451839951,-1040.24545121,0.00016999,5]
[395116889,1764451839960,-297.64259009,0.00016999,2]
[395116890,1764451839970,-300.0,0.00016999,2]
[395116891,1764451839979,-3480291.95276505,0.00017,2]
[395116898,1764451841379,-639.88094719,0.00017,2]
[395116900,1764451841398,-937.5,0.00017,2]
[395116903,1764451841705,-1199.99995,0.00017,2]
[395116904,1764451841720,-3021.42867883,0.00017,2]
[395116905,1764451841732,-1651.38396414,0.00017,2]
[395116906,1764451841747,-4663.45325746,0.00017,2]
[395116907,1764451841758,-3335.34632759,0.00017,2]
[395116908,1764451841773,-479.04107656,0.00017,2]
[395116909,1764451841785,-1506.07101574,0.00017,2]
[395116910,1764451841798,-872.73,0.00017,2]
[395116911,1764451841809,-2934.50000002,0.00017,2]
[395116912,1764451841820,-469.09003,0.00017,2]
[395116913,1764451841831,-576.99438448,0.00017,2]
[395116917,1764451843411,-826.6356425,0.000169,2]
[395116918,1764451843421,-44218.78370009,0.00017,2]
[395116919,1764451843576,-13707.00938325,0.00017,2]
[395116926,1764451846506,-5692.93176717,0.00017,2]
[395116927,1764451846566,-28017.29745026,0.00017,2]
[395116929,1764451867555,511.019605,7.945e-05,2]
[395116962,1764452416002,164.86,0.00019178,30]
[395116984,1764452477195,166.66,0.00014045,2]
[395116985,1764452477401,166.66,0.00014341,2]
[395116986,1764452477620,166.66,0.00014637,2]
[395116989,1764452549671,1600.0,0.00014551,2]
[395116991,1764452658797,164.94,7.225e-05,2]
[395116992,1764452659024,164.94,7.605e-05,2]
[395116993,1764452659235,164.94,7.986e-05,2]
[395116994,1764452659431,164.94,8.366e-05,2]
[395116995,1764452659653,164.94,8.746e-05,2]
[395116996,1764452659865,164.94,9.127e-05,2]
[395116997,1764452660070,164.94,9.507e-05,2]
[395116998,1764452660283,164.94,9.887e-05,2]
[395116999,1764452660476,164.94,0.00010267,2]
[395117000,1764452660683,164.94,0.00010648,2]
[395117001,1764452662004,164.94,0.00011028,2]
[395117002,1764452662063,164.94,0.00011408,2]
[395117003,1764452662102,164.94,0.00011788,2]
[395117004,1764452662143,164.94,0.00012169,2]
[395117005,1764452662190,164.94,0.00012549,2]
[395117006,1764452662230,164.94,0.00012929,2]
[395117007,1764452662272,164.94,0.0001331,2]
[395117008,1764452662310,164.94,0.0001369,2]
[395117009,1764452663020,164.94,0.0001407,2]
[395117010,1764452663065,164.94,0.0001445,2]
[395117011,1764452696485,3566.4,0.00014405,2]
[395117013,1764452767326,1500.0,0.00014313,2]
[395117041,1764453031499,-166.66,0.00014932,2]
[395117042,1764453031510,-250.0,0.00014943,2]
[395117043,1764453031521,-300.0,0.00014943,2]
[395117044,1764453031530,-195.0,0.00014953,2]
[395117045,1764453031540,-250.0,0.00014971,2]
[395117046,1764453031550,-195.0,0.00014988,2]
[395117047,1764453031559,-210.4698387,0.00015007,2]
[395117048,1764453031568,-5500.55703216,0.00015007,2]
[395117049,1764453031582,-19501.18103683,0.00015007,2]
[395117050,1764453031625,-443.81911131,0.00015007,2]
[395117051,1764453031642,-660.1,0.00015007,2]
[395117052,1764453031655,-551.86337267,0.00015007,2]
[395117053,1764453031680,-1499.73759379,0.00015007,2]
[395117054,1764453031693,-737.05343386,0.00015007,2]
[395117055,1764453031705,-13815.0,0.00015007,2]
[395117088,1764453038354,-393.85534891,0.00015006,2]
[395117089,1764453038364,-500.0,0.00015006,2]
[395117090,1764453038374,-500.0,0.00015006,2]
[395117091,1764453038384,-165.26682727,0.00015006,2]
[395117092,1764453038393,-586.99996907,0.00015006,2]
[395117093,1764453038403,-85.4288906,0.00015006,2]
[395117094,1764453038414,-259.61146053,0.00015006,2]
[395117095,1764453038423,-500.0,0.00015006,2]
[395117096,1764453038432,-500.0,0.00015006,2]